bitfinex-derivatives/quotes_ETHF0:USTF0_20241105
["timestamp","ask_amount","ask_price","bid_price","bid_amount"]
[1730785848539,6.0041294,2432.5,2432.2,0.41138]
[1730785849144,4.1109,2432.5,2432.3,0.41135]
[1730785849441,0.9031,2432.5,2432.2,3.2078]
[1730785849645,0.9031,2432.5,2432.3,0.4242]
[1730785849847,1.31443,2432.5,2432.3,0.83555]
[1730785850042,1.31443,2432.5,2432.4,0.4401]
[1730785850851,0.9031,2432.5,2432.4,0.4401]
[1730785851341,1.31442,2432.5,2432.4,0.4401]
[1730785851744,0.9031,2432.5,2432.4,0.85144]
[1730785854941,0.9031,2432.5,2432.4,0.4401]
[1730785855142,1.31442,2432.5,2432.4,0.4401]
[1730785856648,1.31442,2432.5,2432.3,0.41136]
[1730785857440,0.9031,2432.5,2432.3,0.41136]
[1730785857650,0.41134,2432.4,2432.1,0.4375]
[1730785857845,0.41134,2432.4,2432.2,0.41138]
[1730785858043,0.41134,2432.4,2432.1,0.8723]
[1730785858247,0.41134,2432.4,2432.2,0.41136]
[1730785858644,0.41134,2432.4,2432.3,0.41136]
[1730785858952,5.09381914,2432.5,2432.3,0.41136]
[1730785859544,5.09381914,2432.5,2432.1,0.8723]
[1730785860051,3.77937914,2432.4,2432.3,0.41136]
[1730785860752,3.77937914,2432.4,2432.2,0.41136]
[1730785861045,0.41136,2432.3,2432.1,0.8723]
[1730785861251,0.41136,2432.3,2432.1,1.28369]
[1730785861448,0.4443,2432.2,2432.1,1.28369]
[1730785861647,0.4443,2432.2,2432.1,1.50505423]
[1730785862049,0.85568,2432.2,2432.1,1.09366423]
[1730785863450,0.85568,2432.2,2432.1,1.50505423]
[1730785863745,0.85568,2432.2,2432.1,1.09366423]
[1730785864846,0.85568,2432.2,2432.1,1.50505423]
[1730785865152,0.85568,2432.2,2432.1,1.09366423]
[1730785865852,3.77937914,2432.4,2432.1,5.20486423]
[1730785866055,4.31929044,2432.6,2432.5,0.41132]
[1730785866244,4.31929044,2432.6,2432.5,2.43347651]
[1730785866448,4.31929044,2432.6,2432.5,5.79026916]
[1730785866961,0.8776,2432.8,2432.7,0.41129]
[1730785867252,5.39911305,2432.9,2432.8,0.41127]
[1730785867443,5.39911305,2432.9,2432.8,7.04273846]
[1730785868345,5.39911305,2432.9,2432.8,7.04167177]
[1730785869255,5.39911305,2432.9,2432.8,4.52167]
[1730785869556,5.39911305,2432.9,2432.8,5.66834183]
[1730785870351,0.096,2433.3,2433.2,0.41121]
[1730785870550,0.41117,2433.4,2433.2,0.63877309]
[1730785870753,0.41117,2433.4,2433.2,0.41121]
[1730785871254,7.29479961,2433.6,2433.1,0.4373]
[1730785871453,0.4112,2433.3,2433.1,0.84852]
[1730785871648,7.29479961,2433.6,2433.2,0.41119]
[1730785871959,0.41118,2433.4,2433.2,0.41119]
[1730785872457,0.41118,2433.4,2433.2,0.4112]
[1730785872963,0.4112,2433.3,2433.1,0.84852]
[1730785873457,0.4112,2433.3,2433.1,0.4373]
[1730785873755,4.0854,2433.6,2433.2,0.4112]
[1730785874056,0.41118,2433.4,2433.2,0.4112]
[1730785874450,4.0854,2433.6,2433.1,0.4373]
[1730785874652,4.0854,2433.6,2433.4,0.41117]
[1730785874856,4.0854,2433.6,2433.1,0.4373]
[1730785875057,40.8,2433.5,2433.3,0.41118]
[1730785875255,0.41118,2433.4,2433.1,0.84851]
[1730785875756,0.41118,2433.4,2433.1,0.4373]
[1730785875956,0.41119,2433.3,2433.1,0.4373]
[1730785876259,0.41122,2433.1,2432.8,0.096]
[1730785876462,0.4247,2433.0,2432.8,0.41126]
[1730785876648,0.4247,2433.0,2432.9,0.41126]
[1730785877856,0.4247,2433.0,2432.7,4.1142]
[1730785878061,0.4247,2433.0,2432.8,0.41127]
[1730785878359,0.83594,2433.0,2432.8,0.41126]
[1730785878752,0.83594,2433.0,2432.7,4.1142]
[1730785878954,0.83594,2433.0,2432.9,0.41126]
[1730785879359,0.83594,2433.0,2432.7,4.1142]
[1730785879360,0.83594,2433.0,2432.8,0.41127]
[1730785879662,0.4247,2433.0,2432.8,0.41127]
[1730785879849,4.5351,2433.0,2432.7,3.2078]
[1730785880162,0.41127,2432.8,2432.7,3.2078]
[1730785880459,0.84276,2432.9,2432.7,3.61908]
[1730785880656,0.4247,2433.0,2432.8,0.41127]
[1730785880857,0.83595,2433.0,2432.8,0.41127]
[1730785881057,0.83595,2433.0,2432.7,3.2078]
[1730785881356,0.83595,2433.0,2432.8,0.41127]
[1730785881556,0.83595,2433.0,2432.7,3.2078]
[1730785881557,0.83595,2433.0,2432.7,3.61908]
[1730785882357,0.4247,2433.0,2432.8,0.41127]
[1730785882763,4.5351,2433.0,2432.8,0.41126]
[1730785883152,0.4247,2433.0,2432.8,0.41126]
[1730785883353,4.5351,2433.0,2432.7,3.2078]
[1730785883550,0.4247,2433.0,2432.7,3.2078]
[1730785883755,0.4447,2433.2,2433.1,0.41122]
[1730785883961,0.4447,2433.2,2433.0,0.41122]
[1730785884160,0.4447,2433.2,2432.8,1.3357]
[1730785884456,0.4447,2433.2,2433.1,0.41122]
[1730785885554,0.4447,2433.2,2433.0,0.41124]
[1730785885758,0.85591,2433.2,2432.9,0.41124]
[1730785886165,0.4447,2433.2,2433.0,0.41124]
[1730785887065,0.4447,2433.2,2432.6,0.096]
[1730785887066,0.41128,2432.8,2432.6,0.096]
[1730785887265,0.9045,2432.7,2432.6,0.41131]
[1730785891361,0.9045,2432.7,2432.3,3.2078]
[1730785891362,1.35325,2433.0,2432.7,0.41128]
[1730785891567,0.9085,2432.9,2432.7,0.41128]
[1730785892267,1.31976,2432.9,2432.7,0.41128]
[1730785892475,1.31976,2432.9,2432.6,0.4113]
[1730785892970,0.41127,2432.8,2432.4,0.41134]
[1730785893167,0.9085,2432.9,2432.3,3.2078]
[1730785893368,0.9085,2432.9,2432.5,0.41131]
[1730785893563,0.41129,2432.8,2432.5,0.41131]
[1730785893767,0.41127,2432.8,2432.5,0.41131]
[1730785893968,0.9085,2432.9,2432.3,3.2078]
[1730785894173,0.4113,2432.7,2432.4,0.41133]
[1730785894580,0.41131,2432.6,2432.4,0.41134]
[1730785894772,0.4113,2432.7,2432.4,0.41133]
[1730785894975,0.4113,2432.7,2432.5,0.41132]
[1730785895171,0.9085,2432.9,2432.6,0.4113]
[1730785895374,3.6426,2433.1,2432.6,3.2078]
[1730785895577,3.2078,2433.1,2433.0,0.41124]
[1730785896483,3.2078,2433.4,2432.8,1.02819]
[1730785896777,3.2078,2433.4,2432.7,1.3341]
[1730785896972,3.2078,2433.4,2433.2,0.4112]
[1730785897172,3.61898,2433.4,2433.2,0.4112]
[1730785897772,1.28366,2433.5,2433.2,0.41119]
[1730785898181,1.28367,2433.5,2433.2,0.41119]
[1730785898481,1.28367,2433.5,2433.2,0.4112]
[1730785899185,0.41118,2433.4,2432.9,3.2078]
[1730785899483,0.4112,2433.3,2432.8,0.096]
[1730785899683,4.08189961,2433.5,2433.0,0.41123]
[1730785899982,0.41121,2433.3,2433.0,0.41123]
[1730785900474,0.41121,2433.2,2433.0,0.41123]
[1730785900680,3.62060961,2433.2,2432.9,0.41125]
[1730785900883,0.4499,2433.1,2433.0,0.41124]
[1730785902981,0.86112,2433.1,2433.0,0.41124]
[1730785903685,0.4499,2433.1,2433.0,0.41124]
[1730785904788,0.41123,2433.1,2432.9,0.41125]
[1730785905086,1.32813,2433.1,2432.9,0.41125]
[1730785905280,0.9169,2433.1,2432.7,1.3341]
[1730785905485,0.9169,2433.1,2433.0,0.41124]
[1730785905681,0.41121,2433.2,2433.1,0.41122]
[1730785905881,0.41121,2433.2,2432.9,3.2078]
[1730785906075,0.4326,2433.3,2433.1,0.41122]
[1730785906282,0.8438,2433.3,2432.9,3.2078]
[1730785906482,0.8438,2433.3,2433.1,0.41121]
[1730785906889,0.8438,2433.3,2433.2,0.84071]
[1730785906890,0.4326,2433.3,2433.2,0.84071]
[1730785907787,3.20939961,2433.4,2433.3,0.41119]
[1730785908183,0.4382,2433.5,2433.2,0.4295]
[1730785908388,0.4382,2433.5,2433.4,0.41117]
[1730785908583,0.4382,2433.5,2433.3,0.87748]
[1730785909288,0.4382,2433.5,2433.3,0.4663]
[1730785909592,0.4382,2433.5,2433.3,0.87748]
[1730785910289,0.4382,2433.5,2433.4,0.41117]
[1730785911979,0.4326,2433.6,2433.5,0.41116]
[1730785912284,0.4326,2433.6,2433.4,0.41116]
[1730785912478,0.84375,2433.6,2433.4,0.41116]
[1730785913492,0.4326,2433.6,2433.4,0.41117]
[1730785913992,0.4326,2433.6,2433.4,0.41116]
[1730785914192,0.84374,2433.6,2433.4,0.41116]
[1730785914491,0.4326,2433.6,2433.4,0.41116]
[1730785915096,0.4326,2433.6,2433.3,0.4663]
[1730785915287,0.4326,2433.6,2433.4,0.41117]
[1730785915487,0.4326,2433.6,2433.3,0.4663]
[1730785915789,0.41116,2433.5,2433.2,4.0485]
[1730785915987,0.85446,2433.5,2433.2,3.6373]
[1730785916192,0.41119,2433.4,2433.2,4.0485]
[1730785917893,0.41119,2433.4,2433.2,0.8407]
[1730785918892,0.4433,2433.5,2433.3,0.41119]
[1730785919093,0.4433,2433.5,2433.2,0.4295]
[1730785919094,0.41117,2433.4,2433.2,0.4295]
[1730785919292,0.41118,2433.4,2433.2,0.84069]
[1730785920089,0.4433,2433.5,2433.2,0.4295]
[1730785920391,0.85446,2433.5,2433.3,0.41118]
[1730785920599,0.41115,2433.6,2433.4,0.41116]
[1730785920794,0.41116,2433.5,2433.3,0.41118]
[1730785921096,0.84625,2433.6,2433.4,0.41117]
[1730785921695,0.84625,2433.6,2433.2,0.4295]
[1730785921999,0.41116,2433.5,2433.3,0.41118]
[1730785922796,3.2078,2433.7,2433.4,0.41117]
[1730785922997,0.9121,2433.6,2433.5,0.41116]
[1730785923993,0.9121,2433.6,2433.2,0.4295]
[1730785924189,0.9121,2433.6,2433.5,0.41116]
[1730785924705,1.32325,2433.6,2433.3,0.41119]
[1730785925002,1.32325,2433.6,2433.2,0.4295]
[1730785925204,0.9121,2433.6,2433.2,0.4295]
[1730785925403,1.32325,2433.6,2433.4,0.41117]
[1730785925599,0.9121,2433.6,2433.5,0.41116]
[1730785925790,0.9121,2433.6,2433.2,0.4295]
[1730785925791,1.32325,2433.6,2433.4,0.41117]
[1730785926396,0.9121,2433.6,2433.2,0.4295]
[1730785926598,0.9121,2433.6,2433.5,0.41116]
[1730785928606,0.096,2434.1,2433.5,4.3371086]
[1730785928807,4.30847525,2434.2,2434.0,3.2078]
[1730785928998,4.30847525,2434.2,2434.1,0.86686]
[1730785929309,4.30847525,2434.2,2434.1,4.97486]
[1730785929805,4.30847525,2434.2,2434.1,0.86686]
[1730785930005,0.4556,2434.3,2434.1,5.4406]
[1730785930206,0.4556,2434.3,2434.2,0.41104]
[1730785931194,3.7274,2434.6,2434.2,4.108]
[1730785931399,4.5068,2434.6,2434.4,0.411]
[1730785931700,4.5068,2434.6,2434.5,0.41099]
[1730785931903,3.2078,2434.6,2434.5,0.41099]
[1730785932207,3.2078,2434.6,2434.5,4.51819]
[1730785932704,0.04731,2434.7,2434.6,0.41097]
[1730785932911,0.04731,2434.7,2434.6,1.76227]
[1730785934407,0.04731,2434.7,2434.6,9.07727]
[1730785936300,0.04731,2434.7,2434.6,4.06977]
[1730785936504,0.04731,2434.7,2434.6,0.86197]
[1730785936710,0.90148,2434.7,2434.5,0.41098]
[1730785937298,0.49051,2434.7,2434.5,0.41098]
[1730785937504,0.90147,2434.7,2434.5,0.41098]
[1730785937708,0.49051,2434.7,2434.5,0.41098]
[1730785938207,0.90147,2434.7,2434.4,0.41099]
[1730785938511,0.04731,2434.7,2434.3,1.3261]
[1730785938710,0.04731,2434.7,2434.6,0.41097]
[1730785938906,0.04731,2434.7,2434.3,1.3261]
[1730785939109,3.20939961,2434.8,2434.3,1.3261]
[1730785939308,0.096,2435.1,2434.6,3.2078]
[1730785939510,3.2078,2435.4,2435.3,0.41085]
[1730785939703,0.41077,2435.9,2435.6,0.4108]
[1730785940006,0.41077,2435.9,2435.5,3.2078]
[1730785940207,3.2078,2436.1,2435.5,3.2078]
[1730785940409,0.41076,2436.0,2435.8,0.41078]
[1730785940611,3.2078,2436.1,2435.5,3.2078]
[1730785940909,3.61856,2436.1,2435.8,0.41079]
[1730785941308,3.61856,2436.1,2435.5,3.2078]
[1730785941309,3.2078,2436.1,2435.9,0.41078]
[1730785941509,3.20939961,2436.2,2435.5,3.2078]
[1730785941712,7.30029961,2436.4,2435.5,3.2078]
[1730785942011,0.41073,2436.3,2435.9,0.41077]
[1730785942213,0.05755,2436.0,2435.5,3.2078]
[1730785942511,0.05755,2436.0,2435.7,0.41081]
[1730785942711,0.05755,2436.0,2435.6,0.41083]
[1730785943017,0.05755,2436.0,2435.5,3.2078]
[1730785943608,3.20939961,2435.9,2435.5,3.2078]
[1730785943814,0.4376,2435.9,2435.6,0.41084]
[1730785944002,0.05755,2436.0,2435.9,0.41079]
[1730785944207,0.05755,2436.0,2435.6,4.1056]
[1730785944208,0.05755,2436.0,2435.5,3.6741]
[1730785944420,0.05755,2436.0,2435.8,0.4108]
[1730785944710,0.05755,2436.0,2435.8,0.41079]
[1730785945014,0.05755,2436.0,2435.6,0.41084]
[1730785945211,0.05755,2436.0,2435.5,3.6741]
[1730785945414,0.05755,2436.0,2435.7,0.41081]
[1730785945614,0.05755,2436.0,2435.5,3.6741]
[1730785945815,0.05755,2436.0,2435.8,0.41079]
[1730785946114,0.05755,2436.0,2435.7,0.41082]
[1730785946315,0.46832,2436.0,2435.7,0.41082]
[1730785946911,0.05755,2436.0,2435.5,3.6741]
[1730785947117,0.46832,2436.0,2435.7,0.41081]
[1730785947418,0.46833,2436.0,2435.6,0.41083]
[1730785947612,0.4108,2435.9,2435.5,3.6741]
[1730785947819,0.05755,2436.0,2435.5,3.6741]
[1730785948020,0.05755,2436.0,2435.8,0.4108]
[1730785948322,0.05755,2436.0,2435.8,0.41079]
[1730785948521,0.05755,2436.0,2435.9,5.0035]
[1730785948817,0.05755,2436.0,2435.9,5.41429]
[1730785949614,0.05755,2436.0,2435.9,4.94419]
[1730785949817,0.05755,2436.0,2435.9,5.41349]
[1730785950022,0.05755,2436.0,2435.9,1.30869]
[1730785950225,0.05755,2436.0,2435.5,3.2078]
[1730785950520,0.05755,2436.0,2435.9,0.41079]
[1730785950717,0.05755,2436.0,2435.5,3.6364]
[1730785951114,0.41083,2435.7,2435.5,4.04726]
[1730785951320,0.41081,2435.8,2435.6,0.41083]
[1730785951815,0.893,2435.9,2435.5,3.6364]
[1730785952014,0.446,2435.9,2435.8,0.4108]
[1730785952520,0.8568,2435.9,2435.6,0.41083]
[1730785952723,0.8568,2435.9,2435.5,3.6364]
[1730785952724,0.41082,2435.8,2435.5,4.04725]
[1730785952914,0.85782,2435.8,2435.5,4.04725]
[1730785953114,0.447,2435.8,2435.5,3.6364]
[1730785953321,0.85782,2435.8,2435.5,4.04724]
[1730785953514,0.447,2435.8,2435.7,0.41082]
[1730785954220,0.85679,2435.9,2435.8,0.4108]
[1730785954221,0.446,2435.9,2435.8,0.4108]
[1730785954419,0.85679,2435.9,2435.7,0.41082]
[1730785954624,0.446,2435.9,2435.8,0.4108]
[1730785954821,0.05755,2436.0,2435.9,0.41079]
[1730785955120,0.05755,2436.0,2435.9,4.51639]
[1730785955326,0.05755,2436.0,2435.9,5.41329]
[1730785957427,0.4533,2436.3,2436.2,0.41074]
[1730785957726,0.4436,2436.5,2436.3,0.41072]
[1730785957932,0.8949,2436.5,2436.3,0.41072]
[1730785958119,0.4107,2436.4,2436.3,0.41072]
[1730785958324,0.8949,2436.5,2436.0,0.4379]
[1730785958524,0.41071,2436.4,2436.2,0.41072]
[1730785959028,1.3056,2436.5,2436.2,0.41072]
[1730785959229,1.3056,2436.5,2436.0,0.4379]
[1730785959422,0.8949,2436.5,2436.2,0.41072]
[1730785959622,0.8949,2436.5,2436.0,0.4379]
[1730785959818,1.30559,2436.5,2436.3,0.41072]
[1730785960226,0.4345,2436.4,2436.3,0.41072]
[1730785960427,0.4345,2436.4,2436.0,0.4379]
[1730785960836,0.4345,2436.4,2436.2,0.41073]
[1730785961929,0.41073,2436.3,2436.0,0.84867]
[1730785962135,0.4345,2436.4,2436.1,0.41075]
[1730785962136,0.84522,2436.4,2436.1,0.41075]
[1730785962732,0.84521,2436.4,2436.1,0.41075]
[1730785963335,0.84521,2436.4,2436.1,0.41074]
[1730785963833,0.41072,2436.3,2436.1,0.41074]
[1730785964235,0.84521,2436.4,2436.1,0.41074]
[1730785964427,0.4345,2436.4,2436.1,0.41074]
[1730785964622,0.84521,2436.4,2436.1,0.41074]
[1730785964827,0.84521,2436.4,2436.2,0.41073]
[1730785965024,0.84521,2436.4,2435.8,3.655]
[1730785965025,0.84521,2436.4,2436.1,0.41075]
[1730785965332,0.41073,2436.3,2436.0,0.41076]
[1730785965535,0.84522,2436.4,2436.1,0.41075]
[1730785965835,0.84522,2436.4,2435.8,3.655]
[1730785965836,0.4345,2436.4,2435.8,3.655]
[1730785966138,0.4345,2436.4,2436.2,0.41072]
[1730785966537,0.4345,2436.4,2436.3,0.41072]
[1730785966738,0.84521,2436.4,2435.8,3.655]
[1730785966938,0.84521,2436.4,2436.2,0.41073]
[1730785967237,0.4345,2436.4,2436.2,0.41073]
[1730785967441,0.4345,2436.4,2436.3,0.41072]
[1730785968235,0.84521,2436.4,2436.2,0.41073]
[1730785968436,0.84521,2436.4,2436.2,0.41074]
[1730785968437,3.2078,2436.3,2436.2,0.41074]
[1730785969034,7.3126,2436.3,2435.8,0.4472]
[1730785969232,3.2078,2436.3,2435.9,0.41078]
[1730785969427,0.41075,2436.2,2436.0,0.41076]
[1730785969637,0.86366,2436.1,2435.9,0.41078]
[1730785969837,1.32806,2436.1,2435.9,0.41078]
[1730785970435,0.4515,2436.0,2435.9,0.41078]
[1730785971134,0.4515,2436.0,2435.5,3.2078]
[1730785971334,0.4515,2436.0,2435.5,3.6698]
[1730785971634,0.4515,2436.0,2435.9,0.41079]
[1730785972038,0.4515,2436.0,2435.8,0.41079]
[1730785972232,0.4515,2436.0,2435.9,0.41079]
[1730785972537,0.86228,2436.0,2435.8,0.4108]
[1730785972930,0.4515,2436.0,2435.9,0.41079]
[1730785973536,0.4515,2436.0,2435.5,4.69693]
[1730785973736,0.86227,2436.0,2435.8,0.41079]
[1730785974127,0.4515,2436.0,2435.5,4.69693]
[1730785974440,0.4515,2436.0,2435.9,0.41079]
[1730785974645,0.4515,2436.0,2435.5,4.69693]
[1730785974936,0.86227,2436.0,2435.8,0.4108]
[1730785975131,0.4515,2436.0,2435.5,4.69693]
[1730785975331,0.4515,2436.0,2435.9,0.41079]
[1730785975732,3.2078,2436.1,2435.9,4.1048]
[1730785975937,3.2078,2436.1,2436.0,0.41077]
[1730785976143,3.2078,2436.4,2435.5,6.87919961]
[1730785976433,3.61851,2436.4,2436.2,0.41073]
[1730785976836,3.61851,2436.4,2436.1,0.41074]
[1730785977036,3.61851,2436.4,2435.9,1.325]
[1730785977235,3.2078,2436.4,2436.2,0.41072]
[1730785977433,3.61851,2436.4,2436.2,0.41072]
[1730785977744,0.41072,2436.3,2436.1,0.41074]
[1730785978242,3.61852,2436.4,2436.1,0.41074]
[1730785978443,0.41073,2436.3,2436.1,0.41074]
[1730785978740,7.3126,2436.4,2435.9,0.4412]
[1730785978945,3.2078,2436.4,2435.8,0.096]
[1730785979142,0.41073,2436.3,2436.0,0.41076]
[1730785979344,3.2078,2436.4,2436.0,0.41076]
[1730785979539,0.41075,2436.2,2436.0,0.41076]
[1730785979741,0.866,2436.1,2436.0,0.41076]
[1730785979937,1.2918,2436.1,2436.0,0.41076]
[1730785980340,1.2918,2436.1,2435.7,0.4465]
[1730785980845,1.2918,2436.1,2436.0,0.41077]
[1730785981741,1.70255,2436.1,2435.9,0.41078]
[1730785981942,1.2918,2436.1,2436.0,0.41077]
[1730785982142,1.70255,2436.1,2435.9,0.41078]
[1730785982339,1.70255,2436.1,2435.7,0.4465]
[1730785982340,0.41079,2435.9,2435.7,0.41081]
[1730785982538,0.41079,2435.9,2435.4,0.46]
[1730785982539,3.2078,2435.8,2435.4,0.46]
[1730785982733,0.8638,2435.7,2435.6,0.41084]
[1730785983341,0.4392,2435.7,2435.6,0.41084]
[1730785985343,0.4392,2435.7,2435.6,0.63868383]
[1730785985544,3.2078,2435.8,2435.7,0.41082]
[1730785985732,3.2078,2435.8,2435.7,1.07016383]
[1730785985936,0.8624,2436.1,2436.0,0.41077]
[1730785986144,0.8624,2436.1,2435.8,0.8729]
[1730785986439,0.8624,2436.1,2436.0,0.41077]
[1730785987034,1.27316,2436.1,2435.9,0.41078]
[1730785987340,0.41078,2436.0,2435.8,0.8449]
[1730785987547,1.27316,2436.1,2435.8,0.8449]
[1730785987741,0.8624,2436.1,2435.8,0.4341]
[1730785987946,0.8624,2436.1,2435.9,0.41078]
[1730785988444,1.27315,2436.1,2435.9,0.41078]
[1730785988846,1.27315,2436.1,2435.8,0.4341]
[1730785989042,1.27315,2436.1,2435.8,0.84489]
[1730785989440,0.41078,2436.0,2435.8,0.4341]
[1730785989742,0.41078,2436.0,2435.8,0.8449]
[1730785990435,0.41078,2436.0,2435.8,0.4341]
[1730785990635,0.8624,2436.1,2435.8,0.84489]
[1730785990840,1.27317,2436.1,2435.8,0.84489]
[1730785991042,0.41077,2436.0,2435.8,0.84489]
[1730785991242,1.27317,2436.1,2435.8,0.84489]
[1730785991642,1.27317,2436.1,2435.8,0.4341]
[1730785991845,1.27317,2436.1,2435.8,0.84489]
[1730785992246,0.8624,2436.1,2435.8,0.4341]
[1730785992442,0.41077,2436.0,2435.8,0.8449]
[1730785992645,1.27317,2436.1,2435.8,0.8449]
[1730785993146,0.8624,2436.1,2435.8,0.4341]
[1730785993350,0.8624,2436.1,2435.5,3.6498]
[1730785993553,6.41719961,2435.9,2435.5,3.61864]
[1730785993746,0.4358,2435.8,2435.5,3.61864]
[1730785993946,0.86543,2435.7,2435.5,3.61864]
[1730785994147,0.9232,2435.7,2435.6,0.41084]
[1730785995847,1.33402,2435.7,2435.5,0.41085]
[1730785996053,0.9232,2435.7,2435.5,0.41085]
[1730785996353,1.33402,2435.7,2435.5,0.41085]
[1730785996554,0.9232,2435.7,2435.5,0.41085]
[1730785996857,0.9232,2435.7,2435.6,0.41084]
[1730785997957,1.33402,2435.7,2435.5,0.41085]
[1730785998157,0.9232,2435.7,2435.6,0.41084]
[1730785998353,0.9232,2435.7,2435.4,0.9151]
[1730785998548,1.33403,2435.7,2435.5,0.41085]
[1730785999947,0.9232,2435.7,2435.4,0.4675]
[1730786000148,0.9232,2435.7,2435.6,0.41084]
[1730786000551,0.9232,2435.7,2435.4,0.4675]
[1730786000757,0.9232,2435.7,2435.5,0.4108]
[1730786002751,0.9232,2435.7,2435.6,0.4108]
[1730786003851,0.9232,2435.7,2435.4,0.4675]
[1730786004052,0.9232,2435.7,2435.2,0.4314]
[1730786004053,1.47985464,2435.5,2435.2,0.4314]
[1730786004260,1.47985464,2435.3,2435.1,1.28897]
[1730786004557,1.47985464,2435.2,2435.1,0.4254]
[1730786004758,2.34875464,2435.2,2434.7,0.5201]
[1730786004954,2.75962464,2435.2,2434.8,1.09673187]
[1730786005153,2.34875464,2435.2,2435.0,0.4109]
[1730786005354,0.8689,2435.2,2435.0,0.4109]
[1730786005554,0.41089,2435.1,2434.9,0.41091]
[1730786005756,0.4109,2435.0,2434.8,1.27973]
[1730786005962,0.4109,2435.0,2434.8,0.4254]
[1730786006261,0.8689,2435.2,2434.8,0.4254]
[1730786006462,0.8689,2435.2,2435.1,0.41088]
[1730786007162,0.8689,2435.2,2435.0,0.41089]
[1730786007359,0.8689,2435.2,2434.9,0.4434]
[1730786007551,0.8689,2435.2,2435.0,0.41089]
[1730786007752,1.27977,2435.2,2434.8,0.8568]
[1730786007957,1.27977,2435.2,2434.9,0.41092]
[1730786008162,0.41088,2435.1,2434.9,0.41092]
[1730786008357,1.27978,2435.2,2434.9,0.41092]
[1730786008858,7.28401231,2435.2,2434.8,0.8568]
[1730786009059,0.4109,2435.0,2434.8,0.84183]
[1730786009864,0.4109,2435.0,2434.8,0.4309]
[1730786010158,0.4109,2435.0,2434.8,0.84182]
[1730786010363,0.4109,2435.0,2434.8,0.4309]
[1730786010548,4.1072,2435.0,2434.5,0.4259]
[1730786010753,0.41095,2434.7,2434.5,1.29298]
[1730786010959,0.41095,2434.7,2434.5,0.882]
[1730786011157,0.4366,2434.6,2434.5,0.882]
[1730786012373,0.4366,2434.6,2434.5,1.29298]
[1730786012863,0.4366,2434.6,2434.5,0.882]
[1730786013860,0.4366,2434.6,2434.5,1.29298]
[1730786014057,0.4366,2434.6,2434.5,0.882]
[1730786014363,0.4366,2434.6,2434.4,0.41099]
[1730786014563,0.4366,2434.6,2434.5,0.452]
[1730786015264,0.4366,2434.6,2434.5,0.86298]
[1730786015764,0.4366,2434.6,2434.5,0.452]
[1730786015961,0.83734,2434.8,2434.5,0.86298]
[1730786016955,0.4264,2434.8,2434.5,0.86298]
[1730786017163,0.83734,2434.8,2434.6,0.41096]
[1730786017364,0.83734,2434.8,2434.5,0.452]
[1730786017566,0.41095,2434.7,2434.5,0.86297]
[1730786017767,0.41095,2434.7,2434.5,0.452]
[1730786018266,0.41097,2434.6,2434.5,0.452]
[1730786018563,3.61827231,2434.7,2434.5,0.452]
[1730786018766,0.41097,2434.6,2434.5,0.452]
[1730786019264,3.20731231,2434.7,2434.5,0.452]
[1730786019265,3.61827231,2434.7,2434.5,0.452]
[1730786019967,3.20731231,2434.7,2434.5,0.452]
[1730786020169,3.61827231,2434.7,2434.5,0.452]
[1730786020569,0.41097,2434.6,2434.5,0.452]
[1730786021164,0.411,2434.5,2434.3,3.2078]
[1730786021364,0.8982,2434.5,2434.3,3.61881]
[1730786021563,1.30919,2434.5,2434.3,3.2078]
[1730786021765,0.41103,2434.3,2434.1,0.096]
[1730786021963,0.431,2434.2,2433.8,1.4918]
[1730786022175,0.84204,2434.2,2434.0,0.41107]
[1730786022371,0.431,2434.2,2434.0,0.41107]
[1730786022668,3.63831231,2434.2,2433.8,0.4111]
[1730786022972,0.9087,2434.1,2433.7,1.98821589]
[1730786023171,3.20731231,2434.0,2433.7,1.06951589]
[1730786023563,4.52756,2434.1,2433.8,0.41109]
[1730786023761,4.1165,2434.1,2433.7,1.06951589]
[1730786023960,0.41109,2433.9,2433.7,1.06951589]
[1730786024166,0.41109,2433.9,2433.7,0.41112]
[1730786024365,3.61839231,2434.0,2433.7,0.41112]
[1730786024569,3.61839231,2434.0,2433.8,0.4111]
[1730786024774,3.61839231,2434.0,2433.7,0.86681]
[1730786026073,3.20731231,2434.0,2433.8,0.4111]
[1730786026571,3.61838231,2434.0,2433.7,0.86681]
[1730786027771,3.20731231,2434.0,2433.7,0.4505]
[1730786027972,3.61838231,2434.0,2433.7,0.4505]
[1730786028174,3.20731231,2434.0,2433.8,0.4111]
[1730786028673,3.61839231,2434.0,2433.7,0.86161]
[1730786029276,3.20731231,2434.0,2433.7,0.4505]
[1730786029578,3.20731231,2434.0,2433.7,0.86162]
[1730786029579,0.41109,2433.9,2433.7,0.86162]
[1730786030169,0.41109,2433.9,2433.7,0.4505]
[1730786030571,0.4111,2433.8,2433.7,0.4505]
[1730786030772,3.20731231,2434.0,2433.7,0.4505]
[1730786031073,0.4111,2433.8,2433.7,0.4505]
[1730786031771,0.41109,2433.9,2433.7,0.86162]
[1730786031967,0.9087,2434.1,2433.7,0.4505]
[1730786032174,3.61838231,2434.0,2433.8,0.84429]
[1730786032565,3.20731231,2434.0,2433.8,0.84429]
[1730786034675,3.61838231,2434.0,2433.8,0.84429]
[1730786034876,3.20731231,2434.0,2433.8,0.4332]
[1730786035078,3.20731231,2434.0,2433.9,0.41108]
[1730786036176,40.8,2434.3,2433.8,0.4332]